fUST/lending_fUST_20241220
["ID","MTS","AMOUNT","RATE_DAILY","PERIOD"]
[346077742,1734693093446,-4673.27,0.00023561,6]
[346077743,1734693093455,-500.0,0.00023561,6]
[346077744,1734693093468,-566.02,0.00023561,6]
[346077745,1734693093478,-2791.17,0.00023561,6]
[346077746,1734693093488,-503.87,0.00023561,6]
[346077747,1734693093499,-1647.66,0.00023561,6]
[346077748,1734693093510,-500.0,0.00023561,6]
[346077749,1734693093522,-500.0,0.00023561,6]
[346077750,1734693093534,-500.0,0.00023561,6]
[346077751,1734693093544,-650.66,0.00023561,6]
[346077752,1734693093554,-2005.93,0.00023561,6]
[346077753,1734693093564,-500.0,0.00023561,6]
[346077754,1734693093573,-537.75,0.00023561,6]
[346077755,1734693093584,-1424.07,0.00023561,6]
[346077756,1734693093595,-500.0,0.00023561,6]
[346077757,1734693093604,-907.39,0.00023561,6]
[346077758,1734693093614,-1508.58,0.00023561,6]
[346077759,1734693093624,-500.0,0.00023561,2]
[346077760,1734693093633,-668.4,0.00023561,6]
[346077761,1734693093643,-564.28,0.00023561,6]
[346077762,1734693093653,-500.0,0.00023561,6]
[346077763,1734693093663,-1278.74,0.00023561,6]
[346077764,1734693093673,-800.05,0.00023561,6]
[346077765,1734693093682,-2906.3,0.00023561,6]
[346077766,1734693093692,-500.0,0.00023561,6]
[346077767,1734693093702,-1066.82,0.00023561,6]
[346077768,1734693093715,-4154.09,0.00023561,6]
[346077769,1734693093727,-2034.35,0.00023561,6]
[346077770,1734693093737,-403.45952999,0.000236,2]
[346077771,1734693093748,-420.0,0.0002371,2]
[346077772,1734693093759,-1500.0,0.00023722,2]
[346077773,1734693093768,-179.40169,0.0002377,2]
[346077774,1734693093778,-169.92,0.00023802,2]
[346077775,1734693093788,-1480.54287505,0.00023804,2]
[346077776,1734693093797,-254.26733163,0.00023835,6]
[346077777,1734693093808,-500.0,0.00023835,6]
[346077778,1734693093818,-500.0,0.00023835,6]
[346077779,1734693093828,-151.0,0.00023835,7]
[346077780,1734693093838,-151.0,0.00023835,7]
[346077781,1734693093849,-151.0,0.00023835,7]
[346077782,1734693093859,-151.0,0.00023835,7]
[346077783,1734693093869,-151.0,0.00023835,7]
[346077784,1734693093878,-182.415833,0.00023835,7]
[346077785,1734693093888,-305.149825,0.00023835,7]
[346077786,1734693093897,-305.149825,0.00023835,7]
[346077787,1734693093906,-409.274072,0.00023835,7]
[346077788,1734693093915,-409.274072,0.00023835,7]
[346077789,1734693093925,-500.0,0.00023835,6]
[346077790,1734693093935,-500.0,0.00023835,6]
[346077791,1734693093945,-602.42,0.00023835,6]
[346077792,1734693093954,-500.0,0.00023835,6]
[346077793,1734693093970,-500.0,0.00023835,6]
[346077794,1734693093980,-500.0,0.00023835,6]
[346077795,1734693093989,-1262.667456,0.00023835,7]
[346077796,1734693094000,-1144.54,0.00023835,6]
[346077797,1734693094010,-224.76893583,0.00023835,6]
[346077798,1734693094019,-1262.667456,0.00023835,7]
[346077799,1734693094029,-500.0,0.00023835,6]
[346077800,1734693094038,-502.23,0.00023835,6]
[346077801,1734693094048,-216.94715489,0.00023835,6]
[346077802,1734693094058,-500.0,0.00023835,6]
[346077803,1734693094068,-500.0,0.00023835,6]
[346077804,1734693094078,-504.17,0.00023835,6]
[346077805,1734693094090,-500.0,0.00023835,6]
[346077806,1734693094100,-649.76,0.00023835,6]
[346077807,1734693094110,-660.53,0.00023835,6]
[346077808,1734693094119,-500.0,0.00023835,6]
[346077809,1734693094128,-1017.84,0.00023835,6]
[346077810,1734693094138,-365.239564,0.00023835,7]
[346077811,1734693094148,-884.09,0.00023835,6]
[346077812,1734693094158,-500.0,0.00023835,6]
[346077813,1734693094168,-365.239574,0.00023835,7]
[346077814,1734693094178,-500.0,0.00023835,6]
[346077815,1734693094188,-500.0,0.00023835,6]
[346077816,1734693094198,-339.519478,0.00023835,7]
[346077817,1734693094208,-500.0,0.00023835,6]
[346077818,1734693094222,-339.519476,0.00023835,7]
[346077819,1734693094232,-500.0,0.00023835,6]
[346077820,1734693094242,-500.0,0.00023835,6]
[346077821,1734693094252,-500.0,0.00023835,6]
[346077822,1734693094261,-800.6,0.00023835,6]
[346077823,1734693094270,-634.34,0.00023835,6]
[346077824,1734693094280,-957.36,0.00023835,6]
[346077825,1734693094290,-500.0,0.00023835,6]
[346077826,1734693094300,-500.0,0.00023835,6]
[346077827,1734693094310,-361.43466287,0.00023835,6]
[346077828,1734693094320,-1728.45,0.00023835,6]
[346077829,1734693094330,-500.0,0.00023835,6]
[346077830,1734693094341,-500.0,0.00023835,6]
[346077831,1734693094351,-437.27524,0.00023835,7]
[346077832,1734693094362,-437.275249,0.00023835,7]
[346077833,1734693094372,-723.0,0.00023835,6]
[346077834,1734693094381,-1023.35,0.00023835,6]
[346077835,1734693094558,-565.08,0.00023835,6]
[346077836,1734693094569,-500.0,0.00023835,6]
[346077837,1734693094579,-4532.594342,0.00023835,7]
[346077838,1734693094588,-500.0,0.00023835,6]
[346077839,1734693094598,-1199.17,0.00023835,6]
[346077840,1734693094608,-500.0,0.00023835,6]
[346077841,1734693094618,-500.0,0.00023835,6]
[346077842,1734693094627,-592.75,0.00023835,6]
[346077843,1734693094636,-500.0,0.00023835,6]
[346077844,1734693094646,-500.0,0.00023835,6]
[346077845,1734693094655,-765.62,0.00023835,6]
[346077846,1734693094664,-500.0,0.00023835,6]
[346077847,1734693094674,-1006.14,0.00023835,6]
[346077848,1734693094683,-500.0,0.00023835,6]
[346077849,1734693094692,-887.36,0.00023835,6]
[346077850,1734693094702,-1902.09,0.00023835,6]
[346077851,1734693094717,-500.0,0.00023835,6]
[346077852,1734693094727,-1156.92,0.00023835,6]
[346077853,1734693094736,-500.0,0.00023835,6]
[346077854,1734693094746,-506.21,0.00023835,6]
[346077855,1734693094755,-538.01,0.00023835,6]
[346077856,1734693094766,-500.0,0.00023835,6]
[346077857,1734693094775,-1161.97,0.00023835,6]
[346077858,1734693094785,-500.0,0.00023835,6]
[346077859,1734693094795,-304.75884586,0.00023835,6]
[346077860,1734693094804,-500.0,0.00023835,6]
[346077861,1734693094813,-902.08,0.00023835,6]
[346077862,1734693094823,-500.0,0.00023835,6]
[346077863,1734693094833,-1667.53,0.00023835,6]
[346077864,1734693094842,-511.15146433,0.00023835,6]
[346077865,1734693094852,-580.22,0.00023835,6]
[346077866,1734693094862,-1293.82,0.00023835,6]
[346077867,1734693094871,-354.27671386,0.00023835,6]
[346077868,1734693094881,-1211.12,0.00023835,6]
[346077869,1734693094890,-500.0,0.00023835,6]
[346077870,1734693094900,-500.0,0.00023835,6]
[346077871,1734693094909,-510.23,0.00023835,6]
[346077872,1734693094919,-500.0,0.00023835,6]
[346077873,1734693094928,-988.28,0.00023835,6]
[346077874,1734693094939,-2509.21,0.00023835,6]
[346077875,1734693094948,-1456.58,0.00023835,6]
[346077876,1734693094958,-664.27,0.00023835,6]
[346077877,1734693094971,-500.0,0.00023835,6]
[346077878,1734693094980,-1215.59,0.00023835,6]
[346077879,1734693095001,-1202.07,0.00023835,6]
[346077880,1734693095011,-386.83347475,0.00023835,6]
[346077881,1734693095020,-500.0,0.00023835,6]
[346077882,1734693095030,-500.0,0.00023835,6]
[346077883,1734693095040,-532.69738055,0.00023835,6]
[346077884,1734693095050,-500.0,0.00023835,6]
[346077885,1734693095060,-500.0,0.00023835,6]
[346077886,1734693095069,-870.43,0.00023835,6]
[346077887,1734693095079,-202.04903747,0.00023835,6]
[346077888,1734693095089,-500.0,0.00023835,6]
[346077889,1734693095099,-500.0,0.00023835,6]
[346077890,1734693095109,-500.0,0.00023835,6]
[346077891,1734693095120,-500.0,0.00023835,6]
[346077892,1734693095130,-500.0,0.00023835,6]
[346077893,1734693095139,-534.47,0.00023835,6]
[346077894,1734693095149,-500.0,0.00023835,6]
[346077895,1734693095159,-500.0,0.00023835,6]
[346077896,1734693095168,-500.0,0.00023835,6]
[346077897,1734693095178,-500.0,0.00023835,6]
[346077898,1734693095187,-608.69360006,0.00023835,6]
[346077899,1734693095198,-663.44,0.00023835,6]
[346077900,1734693095208,-644.54,0.00023835,6]
[346077901,1734693095220,-500.0,0.00023835,6]
[346077902,1734693095230,-200.0,0.00023835,6]
[346077903,1734693095240,-500.0,0.00023835,6]
[346077904,1734693095250,-500.0,0.00023835,6]
[346077905,1734693095260,-500.0,0.00023835,6]
[346077906,1734693095269,-500.0,0.00023835,6]
[346077907,1734693095279,-3028.67,0.00023835,6]
[346077908,1734693095289,-500.0,0.00023835,6]
[346077909,1734693095298,-662.01,0.00023835,6]
[346077910,1734693095307,-500.0,0.00023835,6]
[346077911,1734693095317,-400.89,0.00023835,6]
[346077912,1734693095327,-500.0,0.00023835,6]
[346077913,1734693095337,-711.74,0.00023835,6]
[346077914,1734693095347,-554.08,0.00023835,6]
[346077915,1734693095356,-645.88,0.00023835,6]
[346077916,1734693095366,-500.0,0.00023835,6]
[346077917,1734693095375,-577.97,0.00023835,6]
[346077918,1734693095385,-500.0,0.00023835,6]
[346077919,1734693095395,-1637.88,0.00023835,6]
[346077920,1734693095404,-485.20527554,0.00023835,6]
[346077921,1734693095414,-778.88,0.00023835,6]
[346077922,1734693095427,-522.21134252,0.00023835,6]
[346077923,1734693095437,-2108.73,0.00023835,6]
[346077924,1734693095449,-642.6,0.00023835,6]
[346077925,1734693095460,-500.0,0.00023835,6]
[346077926,1734693095472,-993.42,0.00023835,6]
[346077927,1734693095482,-500.0,0.00023835,6]
[346077928,1734693095491,-500.0,0.00023835,6]
[346077929,1734693095502,-388.76919749,0.00023835,6]
[346077930,1734693095512,-500.0,0.00023835,6]
[346077931,1734693095521,-1347.62,0.00023835,6]
[346077932,1734693095531,-1576.34,0.00023835,6]
[346077933,1734693095540,-500.0,0.00023835,6]
[346077934,1734693095550,-559.19,0.00023835,6]
[346077935,1734693095559,-783.39,0.00023835,6]
[346077936,1734693095568,-500.0,0.00023835,6]
[346077937,1734693095578,-500.0,0.00023835,6]
[346077938,1734693095587,-816.89,0.00023835,6]
[346077939,1734693095597,-1486.6,0.00023835,6]
[346077940,1734693095607,-683.88,0.00023835,6]
[346077941,1734693095616,-500.0,0.00023835,6]
[346077942,1734693095626,-500.0,0.00023835,6]
[346077943,1734693095636,-527.99743594,0.00023835,6]
[346077944,1734693095646,-3350.69,0.00023835,6]
[346077945,1734693095656,-500.0,0.00023835,6]
[346077946,1734693095665,-3984.39,0.00023835,6]
[346077947,1734693095675,-500.0,0.00023835,6]
[346077948,1734693095685,-657.82,0.00023835,6]
[346077949,1734693095695,-908.77,0.00023835,6]
[346077950,1734693095704,-500.0,0.00023835,6]
[346077951,1734693095717,-500.0,0.00023835,6]
[346077952,1734693095727,-500.0,0.00023835,6]
[346077953,1734693095736,-628.05,0.00023835,6]
[346077954,1734693095746,-500.0,0.00023835,6]
[346077955,1734693095756,-579.5,0.00023835,6]
[346077956,1734693095765,-750.31,0.00023835,6]
[346077957,1734693095775,-519.61,0.00023835,6]
[346077958,1734693095784,-500.0,0.00023835,6]
[346077959,1734693095794,-2341.45,0.00023835,6]
[346077960,1734693095803,-703.35,0.00023835,6]
[346077961,1734693095812,-846.66,0.00023835,6]
[346077962,1734693095822,-558.24,0.00023835,6]
[346077963,1734693095831,-173.96,0.00023835,6]
[346077964,1734693095841,-784.95,0.00023835,6]
[346077965,1734693095851,-929.35,0.00023835,6]
[346077966,1734693095861,-500.0,0.00023835,6]
[346077967,1734693095870,-2078.12,0.00023835,6]
[346077968,1734693095886,-500.0,0.00023835,6]
[346077969,1734693095896,-2253.32,0.00023835,6]
[346077970,1734693095905,-753.77,0.00023835,6]
[346077971,1734693095915,-1958.52,0.00023835,6]
[346077972,1734693095924,-928.58,0.00023835,6]
[346077973,1734693095933,-500.0,0.00023835,6]
[346077974,1734693095943,-500.0,0.00023835,6]
[346077975,1734693095952,-2612.84,0.00023835,6]
[346077976,1734693095962,-816.69,0.00023835,6]
[346077977,1734693095973,-500.0,0.00023835,6]
[346077978,1734693095982,-942.58,0.00023835,6]
[346077979,1734693095992,-998.57,0.00023835,6]
[346077980,1734693096001,-500.0,0.00023835,6]
[346077981,1734693096010,-500.0,0.00023835,6]
[346077982,1734693096019,-3375.68,0.00023835,6]
[346077983,1734693096029,-3019.62,0.00023835,6]
[346077984,1734693096039,-591.11,0.00023835,6]
[346077985,1734693096048,-500.0,0.00023835,6]
[346077986,1734693096058,-829.78,0.00023835,6]
[346077987,1734693096067,-500.0,0.00023835,6]
[346077988,1734693096077,-870.11,0.00023835,6]
[346077989,1734693096086,-2878.24,0.00023835,6]
[346077990,1734693096095,-500.0,0.00023835,6]
[346077991,1734693096105,-500.0,0.00023835,6]
[346077992,1734693096114,-500.0,0.00023835,6]
[346077993,1734693096124,-2093.85,0.00023835,6]
[346077994,1734693096133,-561.5,0.00023835,6]
[346077995,1734693096143,-500.0,0.00023835,6]
[346077996,1734693096152,-575.58,0.00023835,6]
[346077997,1734693096161,-500.0,0.00023835,6]
[346077998,1734693096171,-606.38,0.00023835,6]
[346077999,1734693096180,-500.0,0.00023835,6]
[346078000,1734693096190,-1051.37,0.00023835,6]
[346078001,1734693096199,-500.0,0.00023835,6]
[346078002,1734693096208,-605.01,0.00023835,6]
[346078003,1734693096220,-1895.2,0.00023835,6]
[346078004,1734693096230,-1304.77,0.00023835,6]
[346078005,1734693096240,-978.44,0.00023835,6]
[346078006,1734693096250,-823.06,0.00023835,6]
[346078007,1734693096259,-1110.35,0.00023835,6]
[346078008,1734693096268,-15620.31,0.00023835,6]
[346078009,1734693096278,-3107.96,0.00023835,6]
[346078010,1734693096287,-1979.3,0.00023835,6]
[346078011,1734693096297,-1698.36,0.00023835,6]
[346078012,1734693096307,-1217.27,0.00023835,6]
[346078013,1734693096316,-1129.89,0.00023835,6]
[346078014,1734693096326,-500.0,0.00023835,6]
[346078015,1734693096336,-3084.04,0.00023835,6]
[346078016,1734693096345,-500.0,0.00023835,6]
[346078017,1734693096355,-611.22,0.00023835,6]
[346078018,1734693096365,-500.0,0.00023835,6]
[346078019,1734693096374,-514.9,0.00023835,6]
[346078020,1734693096384,-749.85,0.00023835,6]
[346078021,1734693096394,-1709.27,0.00023835,6]
[346078022,1734693096403,-631.5,0.00023835,6]
[346078023,1734693096412,-3926.23,0.00023835,6]
[346078024,1734693096425,-8032.25,0.00023835,6]
[346078025,1734693096434,-957.95,0.00023835,6]
[346078026,1734693096444,-647.04,0.00023835,6]
[346078027,1734693096457,-551.46044758,0.00023835,6]
[346078028,1734693096469,-500.0,0.00023835,6]
[346078029,1734693096479,-880.3,0.00023835,6]
[346078030,1734693096488,-828.99,0.00023835,6]
[346078031,1734693096500,-500.0,0.00023835,6]
[346078032,1734693096509,-500.0,0.00023835,6]
[346078033,1734693096519,-500.0,0.00023835,6]
[346078034,1734693096530,-1556.66,0.00023835,2]
[346078035,1734693096539,-192.31936291,0.00023835,6]
[346078036,1734693096548,-772.83,0.00023835,6]
[346078037,1734693096557,-933.46,0.00023835,6]
[346078038,1734693096566,-727.74,0.00023835,6]
[346078039,1734693096575,-1507.13,0.00023835,6]
[346078040,1734693096584,-628.91,0.00023835,6]
[346078041,1734693096593,-500.0,0.00023835,6]
[346078042,1734693096602,-1026.99,0.00023835,6]
[346078043,1734693096611,-20507.92,0.00023835,6]
[346078044,1734693096620,-1914.41,0.00023835,6]
[346078045,1734693096630,-945.69,0.00023835,6]
[346078046,1734693096639,-769.8,0.00023835,6]
[346078047,1734693096648,-31690.43,0.00023835,6]
[346078048,1734693096658,-10891.37,0.00023835,6]
[346078049,1734693096667,-1881.92,0.00023835,6]
[346078050,1734693096676,-551.82,0.00023835,6]
[346078051,1734693096686,-500.0,0.00023835,6]
[346078052,1734693096695,-500.0,0.00023835,6]
[346078053,1734693096704,-741.52,0.00023835,6]
[346078054,1734693096715,-739.27,0.00023835,6]
[346078055,1734693096725,-500.0,0.00023835,6]
[346078056,1734693096734,-599.48,0.00023835,6]
[346078057,1734693096744,-500.0,0.00023835,6]
[346078058,1734693096753,-674.12,0.00023835,6]
[346078059,1734693096763,-500.0,0.00023835,6]
[346078060,1734693096773,-1525.74,0.00023835,6]
[346078061,1734693096782,-82254.19,0.00023835,6]
[346078062,1734693096791,-5572.46,0.00023835,6]
[346078063,1734693096801,-500.0,0.00023835,6]
[346078064,1734693096811,-730.97,0.00023835,6]
[346078065,1734693096821,-623.84,0.00023835,6]
[346078066,1734693096830,-500.0,0.00023835,6]
[346078067,1734693096840,-12564.99,0.00023835,6]
[346078068,1734693096850,-500.0,0.00023835,6]
[346078069,1734693096859,-734.96,0.00023835,6]
[346078070,1734693096869,-774.73,0.00023835,6]
[346078071,1734693096878,-5780.94,0.00023835,6]
[346078072,1734693096887,-836.63,0.00023835,6]
[346078073,1734693096897,-500.0,0.00023835,6]
[346078074,1734693096906,-527.3,0.00023835,6]
[346078075,1734693096915,-5039.08,0.00023835,6]
[346078076,1734693096924,-500.0,0.00023835,6]
[346078077,1734693096934,-500.0,0.00023835,6]
[346078078,1734693096944,-2098.69,0.00023835,6]
[346078079,1734693096953,-1080.46,0.00023835,6]
[346078080,1734693096963,-648.6,0.00023835,6]
[346078081,1734693096975,-603.16,0.00023835,6]
[346078082,1734693096985,-4746.74,0.00023835,6]
[346078083,1734693096995,-3087.43,0.00023835,6]
[346078084,1734693097004,-501.84,0.00023835,6]
[346078085,1734693097013,-500.0,0.00023835,6]
[346078086,1734693097022,-895.12,0.00023835,6]
[346078087,1734693097032,-500.0,0.00023835,6]
[346078088,1734693097041,-906.86,0.00023835,6]
[346078089,1734693097050,-645.86,0.00023835,6]
[346078090,1734693097060,-796.51,0.00023835,6]
[346078091,1734693097070,-4289.65,0.00023835,6]
[346078092,1734693097079,-1129.09,0.00023835,6]
[346078093,1734693097088,-641.11,0.00023835,6]
[346078094,1734693097098,-1127.64,0.00023835,6]
[346078095,1734693097107,-31466.27,0.00023835,6]
[346078096,1734693097116,-797.8,0.00023835,6]
[346078097,1734693097126,-500.0,0.00023835,6]
[346078098,1734693097135,-500.0,0.00023835,6]
[346078099,1734693097145,-996.74,0.00023835,6]
[346078100,1734693097154,-500.0,0.00023835,6]
[346078101,1734693097163,-500.0,0.00023835,6]
[346078102,1734693097173,-1422.15,0.00023835,6]
[346078103,1734693097183,-1104.77,0.00023835,6]
[346078104,1734693097193,-500.0,0.00023835,6]
[346078105,1734693097203,-505.39,0.00023835,6]
[346078106,1734693097217,-7845.89,0.00023835,6]
[346078107,1734693097228,-953.99,0.00023835,6]
[346078108,1734693097239,-500.0,0.00023835,6]
[346078109,1734693097249,-4901.08,0.00023835,6]
[346078110,1734693097259,-1667.65,0.00023835,6]
[346078111,1734693097268,-500.0,0.00023835,6]
[346078112,1734693097278,-500.0,0.00023835,6]
[346078113,1734693097288,-989.18,0.00023835,6]
[346078114,1734693097298,-871.64,0.00023835,6]
[346078115,1734693097308,-4701.04,0.00023835,6]
[346078116,1734693097318,-1915.75,0.00023835,6]
[346078117,1734693097327,-10035.19,0.00023835,6]
[346078118,1734693097337,-1877.64,0.00023835,6]
[346078119,1734693097347,-1244.76,0.00023835,2]
[346078120,1734693097359,-7749.62,0.00023835,6]
[346078121,1734693097368,-500.0,0.00023835,6]
[346078122,1734693097378,-5377.96,0.00023835,6]
[346078123,1734693097388,-2173.89,0.00023835,6]
[346078124,1734693097397,-2633.81,0.00023835,6]
[346078125,1734693097407,-2682.03,0.00023835,6]
[346078126,1734693097417,-500.0,0.00023835,6]
[346078127,1734693097432,-500.0,0.00023835,6]
[346078128,1734693097442,-630.56,0.00023835,6]
[346078129,1734693097451,-568.8,0.00023835,6]
[346078130,1734693097461,-500.0,0.00023835,6]
[346078131,1734693097475,-1371.8,0.00023835,6]
[346078132,1734693097484,-585.93882716,0.00023835,6]
[346078133,1734693097495,-467.21079439,0.00023835,6]
[346078134,1734693097505,-4069.31,0.00023835,6]
[346078135,1734693097515,-500.0,0.00023835,6]
[346078136,1734693097525,-4673.27,0.00023835,6]
[346078137,1734693097534,-500.0,0.00023835,6]
[346078138,1734693097543,-566.02,0.00023835,6]
[346078139,1734693097553,-2791.17,0.00023835,6]
[346078140,1734693097562,-503.87,0.00023835,6]
[346078141,1734693097571,-1647.66,0.00023835,6]
[346078142,1734693097581,-500.0,0.00023835,6]
[346078143,1734693097590,-500.0,0.00023835,6]
[346078144,1734693097599,-500.0,0.00023835,6]
[346078145,1734693097608,-650.66,0.00023835,6]
[346078146,1734693097618,-2005.93,0.00023835,6]
[346078147,1734693097627,-500.0,0.00023835,6]
[346078148,1734693097637,-537.75,0.00023835,6]
[346078149,1734693097646,-1424.07,0.00023835,6]
[346078150,1734693097656,-500.0,0.00023835,6]
[346078151,1734693097665,-907.39,0.00023835,6]
[346078152,1734693097674,-1508.58,0.00023835,6]
[346078153,1734693097684,-503.25233148,0.00023835,2]
[346078154,1734693097693,-668.4,0.00023835,6]
[346078155,1734693097703,-564.28,0.00023835,6]
[346078156,1734693097715,-314.14744209,0.00023835,6]
[346078157,1734693097725,-1278.74,0.00023835,6]
[346078158,1734693097734,-800.05,0.00023835,6]
[346078159,1734693097743,-2906.3,0.00023835,6]
[346078160,1734693097753,-500.0,0.00023835,6]
[346078161,1734693097762,-1066.82,0.00023835,6]
[346078162,1734693097772,-4154.09,0.00023835,6]
[346078163,1734693097781,-2034.35,0.00023835,6]
[346078164,1734693097791,-231.0,0.0002384,11]
[346078165,1734693097800,-2032.14213793,0.0002388,2]
[346078166,1734693097809,-49973.85124357,0.00023978,2]
[346078167,1734693097819,-151.0,0.00023978,7]
[346078168,1734693097828,-194.97539,0.00023978,7]
[346078169,1734693097837,-151.0,0.00023978,7]
[346078170,1734693097846,-1365.99583754,0.00023987,12]
[346078171,1734693097855,-198200.52479683,0.0002399,7]
[346078172,1734693097864,-548414.3318817,0.0002399,16]
[346078173,1734693097873,-29895.19655298,0.0002399,2]
[346078174,1734693097883,-2412.40421542,0.0002399,7]
[346078175,1734693097891,-2412.40421542,0.0002399,7]
[346078176,1734693097901,-2412.40421542,0.0002399,7]
[346078177,1734693097910,-2470.8270972,0.0002399,7]
[346078178,1734693097920,-151.0,0.0002399,7]
[346078179,1734693097929,-151.0,0.0002399,7]
[346078180,1734693097938,-151.0,0.0002399,7]
[346078181,1734693097947,-151.0,0.0002399,7]
[346078182,1734693097956,-151.0,0.0002399,7]
[346078183,1734693097973,-305.149825,0.0002399,7]
[346078184,1734693097982,-305.149825,0.0002399,7]
[346078185,1734693097991,-305.149825,0.0002399,7]
[346078186,1734693098001,-305.149825,0.0002399,7]
[346078187,1734693098010,-409.274072,0.0002399,7]
[346078188,1734693098019,-409.274072,0.0002399,7]
[346078189,1734693098028,-409.274072,0.0002399,7]
[346078190,1734693098037,-409.274072,0.0002399,7]
[346078191,1734693098047,-1262.667456,0.0002399,7]
[346078192,1734693098056,-1262.66744832,0.0002399,7]
[346078193,1734693098065,-420.0,0.00023997,2]
[346078194,1734693098078,-152204.16416056,0.00024,14]
[346078195,1734693098088,-1000.0,0.00024,15]
[346078196,1734693098097,-5000.0,0.00024,5]
[346078197,1734693098106,-3000.0,0.00024,3]
[346078198,1734693098115,-4000.0,0.00024,2]
[346078199,1734693098124,-510.11406371,0.00024,2]
[346078200,1734693098135,-184.2849009,0.00024,10]
[346078201,1734693098144,-249.56,0.00024,2]
[346078202,1734693098153,-170825.85495516,0.00024,2]
[346078203,1734693098162,-428.90088142,0.00024022,2]
[346078204,1734693098172,-1500.0,0.00024022,2]
[346078205,1734693098182,-153.2604004,0.00024055,2]
[346078206,1734693098191,-151.0,0.00024108,7]
[346078207,1734693098200,-151.0,0.00024108,7]
[346078208,1734693098209,-151.0,0.00024108,7]
[346078209,1734693098221,-151.0,0.00024108,7]
[346078210,1734693098231,-305.149825,0.00024108,7]
[346078211,1734693098240,-305.149825,0.00024108,7]
[346078212,1734693098249,-409.274072,0.00024108,7]
[346078213,1734693098258,-409.274072,0.00024108,7]
[346078214,1734693098268,-500.0,0.00024109,6]
[346078215,1734693098277,-815.95296013,0.00024109,6]
[346078216,1734693098286,-151.0,0.00024109,7]
[346078217,1734693098295,-305.149825,0.00024109,7]
[346078218,1734693098305,-305.149828,0.00024109,7]
[346078219,1734693098314,-409.274072,0.00024109,7]
[346078220,1734693098323,-409.274065,0.00024109,7]
[346078221,1734693098332,-513.47736438,0.00024109,6]
[346078222,1734693098341,-535.96988838,0.00024109,6]
[346078223,1734693098351,-602.42,0.00024109,6]
[346078224,1734693098360,-500.0,0.00024109,6]
[346078225,1734693098369,-500.0,0.00024109,6]
[346078226,1734693098379,-507.5901003,0.00024109,6]
[346078227,1734693098388,-1144.54,0.00024109,6]
[346078228,1734693098397,-500.0,0.00024109,6]
[346078229,1734693098407,-502.23,0.00024109,6]
[346078230,1734693098417,-500.0,0.00024109,6]
[346078231,1734693098431,-500.0,0.00024109,6]
[346078232,1734693098440,-504.17,0.00024109,6]
[346078233,1734693098450,-500.0,0.00024109,6]
[346078234,1734693098459,-649.76,0.00024109,6]
[346078235,1734693098470,-660.53,0.00024109,6]
[346078236,1734693098480,-500.0,0.00024109,6]
[346078237,1734693098489,-1017.84,0.00024109,6]
[346078238,1734693098499,-884.09,0.00024109,6]
[346078239,1734693098508,-500.0,0.00024109,6]
[346078240,1734693098518,-500.0,0.00024109,6]
[346078241,1734693098527,-500.0,0.00024109,6]